bitfinex/quotes_ETHUSD_20250925
["timestamp","ask_amount","ask_price","bid_price","bid_amount"]
[1758769481345,0.001,4102.1,4102.0,6.8407]
[1758769482557,0.001,4102.1,4102.0,9.2785352]
[1758769483722,0.001,4102.1,4101.7,0.2258]
[1758769483941,0.001,4102.1,4101.8,4.5944]
[1758769484270,0.001,4102.1,4101.9,3.905]
[1758769484621,0.001,4102.1,4102.0,0.2258]
[1758769484926,0.001,4102.1,4102.0,2.6636352]
[1758769485126,0.001,4102.1,4102.0,0.6894]
[1758769486250,0.001,4102.1,4102.0,3.13485308]
[1758769486568,0.001,4102.1,4102.0,1.64479843]
[1758769486742,0.001,4102.1,4102.0,1.63718055]
[1758769487458,0.001,4102.1,4102.0,0.6894]
[1758769487655,0.001,4102.1,4102.0,0.69701788]
[1758769487862,0.001,4102.1,4102.0,3.13485308]
[1758769489347,0.001,4102.1,4102.0,0.69701788]
[1758769489837,0.001,4102.1,4102.0,3.13485308]
[1758769490360,0.001,4102.1,4102.0,0.23341788]
[1758769490864,0.001,4102.1,4102.0,3.13485308]
[1758769491954,0.001,4102.1,4102.0,0.69701788]
[1758769492150,0.001,4102.1,4102.0,4.81401788]
[1758769494436,0.001,4102.1,4102.0,6.3738]
[1758769495176,0.001,4102.1,4102.0,8.8116352]
[1758769495676,0.001,4102.1,4102.0,6.3738]
[1758769496166,0.001,4102.1,4102.0,8.8116352]
[1758769496373,0.001,4102.1,4102.0,6.3738]
[1758769497275,0.001,4102.1,4102.0,9.98296352]
[1758769497571,0.001,4102.1,4102.0,10.56816352]
[1758769499167,0.001,4102.1,4102.0,4.42016352]
[1758769499368,0.001,4102.1,4102.0,9.3968352]
[1758769499871,0.001,4102.1,4102.0,8.7074352]
[1758769500074,0.001,4102.1,4102.0,8.9332352]
[1758769500794,0.001,4102.1,4102.0,9.3968352]
[1758769501301,0.001,4102.1,4102.0,8.9332352]
[1758769501456,0.001,4102.1,4101.6,0.002]
[1758769501661,0.1216,4101.9,4101.7,2.031]
[1758769501855,0.6707,4101.8,4101.6,0.002]
[1758769502210,0.6707,4101.8,4101.7,4.117]
[1758769502503,3.13912848,4101.8,4101.7,4.117]
[1758769503055,2.5596135,4101.7,4101.6,0.002]
[1758769503297,3.129483,4101.7,4101.6,1.215]
[1758769503593,3.800183,4101.7,4101.6,1.215]
[1758769504029,1.3621695,4101.7,4101.6,1.215]
[1758769504288,1.39264466,4101.7,4101.6,1.215]
[1758769504480,3.83065816,4101.7,4101.6,1.215]
[1758769504684,1.3621695,4101.7,4101.6,1.215]
[1758769504855,0.3481,4101.7,4101.6,1.215]
[1758769505561,0.2275,4102.1,4101.6,3.88606847]
[1758769505908,0.001,4102.1,4101.8,2.43795208]
[1758769506191,0.001,4102.1,4101.9,4.117]
[1758769506360,0.001,4102.1,4101.9,4.7915]
[1758769506562,0.001,4102.1,4102.0,3.11995373]
[1758769506856,0.001,4102.1,4102.0,0.7961]
[1758769507081,0.001,4102.1,4102.0,6.148]
[1758769507591,0.001,4102.1,4102.0,8.5858352]
[1758769507813,0.001,4102.1,4102.0,8.8188352]
[1758769509394,0.001,4102.1,4102.0,8.8208352]
[1758769510517,0.001,4102.1,4102.0,10.44452332]
[1758769510715,0.001,4102.1,4102.0,10.56612332]
[1758769511590,0.001,4102.1,4102.0,10.12462332]
[1758769511921,0.001,4102.1,4102.0,10.56612332]
[1758769512627,0.001,4102.1,4102.0,7.68678812]
[1758769513132,0.001,4102.1,4102.0,10.12462332]
[1758769513478,0.001,4102.1,4102.0,10.59772332]
[1758769513716,0.001,4102.1,4102.0,4.44972332]
[1758769514023,0.001,4102.1,4102.0,9.4155352]
[1758769514420,0.001,4102.1,4102.0,9.4145352]
[1758769516135,0.001,4102.1,4102.0,7.3835352]
[1758769516448,0.001,4102.1,4102.0,8.9414352]
[1758769517215,0.001,4102.1,4102.0,9.4145352]
[1758769517411,0.001,4102.1,4102.0,10.59978376]
[1758769518640,0.7065,4102.1,4102.0,0.002]
[1758769518821,0.8281,4102.1,4102.0,4.118]
[1758769519040,0.8281,4102.1,4102.0,0.002]
[1758769519361,3.26587577,4102.1,4102.0,4.089]
[1758769519656,1.40160143,4102.1,4102.0,4.089]
[1758769520065,3.8393772,4102.1,4102.0,4.089]
[1758769520645,3.3655772,4102.1,4102.0,4.089]
[1758769520850,3.8393772,4102.1,4102.0,4.089]
[1758769521053,3.8393772,4102.1,4102.0,4.118]
[1758769522754,6.86984939,4102.1,4102.0,0.002]
[1758769522958,6.7177772,4102.1,4102.0,0.002]
[1758769527143,6.2439772,4102.1,4102.0,0.002]
[1758769527335,6.7177772,4102.1,4102.0,0.002]
[1758769535488,18.90159202,4102.1,4102.0,0.002]
[1758769535783,11.6257772,4102.1,4102.0,0.002]
[1758769536970,11.62480208,4102.1,4102.0,0.002]
[1758769537791,7.50880208,4102.1,4102.0,0.002]
[1758769537995,11.62480208,4102.1,4102.0,0.002]
[1758769540898,7.50880208,4102.1,4102.0,0.002]
[1758769541097,6.80330208,4102.1,4102.0,0.002]
[1758769541298,7.03500208,4102.1,4102.0,0.002]
[1758769541477,11.15100208,4102.1,4102.0,0.002]
[1758769541675,6.01130208,4102.1,4102.0,0.002]
[1758769541899,5.43780065,4102.1,4102.0,0.002]
[1758769547613,6.11550065,4102.1,4102.0,0.002]
[1758769548184,10.23150065,4102.1,4102.0,0.002]
[1758769549481,11.02350065,4102.1,4102.0,0.002]
[1758769549697,13.13553067,4102.1,4102.0,0.002]
[1758769554581,13.13453067,4102.1,4102.0,0.002]
[1758769558032,12.45683067,4102.1,4102.0,0.002]
[1758769558238,10.58270065,4102.1,4102.0,0.002]
[1758769559943,2.488e-05,4102.1,4102.0,0.6791]
[1758769560097,2.488e-05,4102.1,4102.0,3.12455308]
[1758769560299,2.488e-05,4102.1,4102.0,6.8251]
[1758769560515,2.488e-05,4102.1,4102.0,3.64855897]
[1758769560704,2.488e-05,4102.1,4102.0,6.09401205]
[1758769560903,2.488e-05,4102.1,4102.0,6.08639417]
[1758769563904,2.488e-05,4102.1,4102.0,6.18412212]
[1758769566253,2.488e-05,4102.1,4102.0,8.16939417]
[1758769566406,2.488e-05,4102.1,4102.0,10.20039417]
[1758769568760,2.488e-05,4102.1,4102.0,4.05539417]
[1758769569064,2.488e-05,4102.1,4102.0,10.20039417]
[1758769569267,2.488e-05,4102.1,4102.0,8.16939417]
[1758769569437,2.488e-05,4102.1,4102.0,10.20039417]
[1758769573081,2.488e-05,4102.1,4102.0,4.05539417]
[1758769573257,2.488e-05,4102.1,4102.0,10.20701205]
[1758769573431,2.488e-05,4102.1,4102.0,10.19939417]
[1758769574134,2.488e-05,4102.1,4102.0,10.32099417]
[1758769574534,2.488e-05,4102.1,4102.0,10.41872212]
[1758769575165,2.488e-05,4102.1,4102.0,10.41792212]
[1758769575375,2.488e-05,4102.1,4102.0,4.17619417]
[1758769575600,2.488e-05,4102.1,4102.0,10.32019417]
[1758769580104,2.488e-05,4102.1,4102.0,14.11219417]
[1758769580993,2.488e-05,4102.1,4102.0,14.20990684]
[1758769582303,2.488e-05,4102.1,4102.0,20.55590684]
[1758769583097,0.001,4102.2,4102.1,6.22977577]
[1758769583302,0.001,4102.2,4102.1,9.31126192]
[1758769585752,0.001,4102.2,4102.1,21.80026192]
[1758769586244,0.001,4102.2,4102.1,21.89796599]
[1758769589810,1e-08,4102.9,4102.8,3.792]
[1758769590009,1e-08,4102.9,4102.8,11.63626158]
[1758769590208,1e-08,4102.9,4102.8,12.31885558]
[1758769590925,1e-08,4102.9,4102.8,11.87465558]
[1758769591233,1e-08,4102.9,4102.8,12.86665558]
[1758769591553,0.67900001,4102.9,4102.8,12.86665558]
[1758769591716,0.67900001,4102.9,4102.8,9.86665558]
[1758769592047,0.24620001,4102.9,4102.8,3.72565558]
[1758769592209,0.24620001,4102.9,4102.8,9.86665558]
[1758769593303,1e-08,4102.9,4102.8,9.86665558]
[1758769595443,1e-08,4102.9,4102.8,5.75565558]
[1758769595635,0.67900001,4102.9,4102.8,9.86565558]
[1758769598044,0.67900001,4102.9,4102.8,6.2616]
[1758769599337,0.67900001,4102.9,4102.8,8.69895985]
[1758769599954,0.67900001,4102.9,4102.8,6.2616]
[1758769600648,0.67900001,4102.9,4102.8,4.11]
[1758769600649,3.11630045,4102.9,4102.8,4.11]
[1758769600847,3.67184362,4102.9,4102.8,4.11]
[1758769601825,1.23454318,4102.9,4102.8,4.11]
[1758769602021,3.67184362,4102.9,4102.8,4.11]
[1758769606349,3.11630045,4102.9,4102.8,4.11]
[1758769606875,0.67900001,4102.9,4102.8,4.11]
[1758769607050,0.68540001,4102.9,4102.8,4.11]
[1758769607677,2.43735985,4102.8,4102.0,0.002]
[1758769607883,2.43741926,4102.7,4102.1,6.141]
[1758769608179,0.6854,4102.6,4102.1,6.141]
[1758769608478,0.6854,4102.6,4102.2,6.141]
[1758769608681,2.43743899,4102.7,4102.2,6.141]
[1758769608907,2.43777577,4102.1,4102.0,0.002]
[1758769609435,3.12317577,4102.1,4102.0,0.002]
[1758769611277,0.6854,4102.1,4102.0,0.002]
[1758769611480,0.2271,4102.3,4102.0,0.002]
[1758769611679,0.2271,4102.1,4102.0,0.002]
[1758769612049,0.6854,4102.1,4102.0,0.002]
[1758769612677,3.6854,4102.1,4102.0,0.002]
[1758769613241,6.12317577,4102.1,4102.0,0.002]
[1758769615773,3.6854,4102.1,4102.0,0.002]
[1758769616587,6.12317577,4102.1,4102.0,0.002]
[1758769616904,0.09775637,4102.5,4102.0,0.002]
[1758769617062,0.09775637,4102.5,4102.0,1.0965]
[1758769617257,0.09775637,4102.5,4102.1,0.8049]
[1758769617653,0.2271,4102.4,4102.1,0.1216]
[1758769617962,0.2271,4102.3,4102.2,4.872]
[1758769618170,3.12305709,4102.3,4102.2,6.141]
[1758769618357,0.6854,4102.3,4102.2,6.141]
[1758769620704,1e-08,4102.9,4102.2,6.141]
[1758769620705,0.6854,4102.8,4102.2,6.141]
[1758769620869,0.1216,4102.6,4102.2,6.141]
[1758769621291,3.16054944,4102.5,4102.2,6.141]
[1758769621586,3.16059793,4102.4,4102.3,4.11]
[1758769622289,0.25,4102.4,4102.3,4.11]
[1758769622696,0.723,4102.4,4102.3,4.11]
[1758769623158,0.1216,4102.4,4102.3,4.11]
[1758769625922,0.1216,4102.4,4102.3,4.11761343]
[1758769626921,0.1216,4102.4,4102.3,4.11]
[1758769629773,0.1216,4102.4,4102.3,4.3506]
[1758769631501,0.1216,4102.4,4102.3,4.35821343]
[1758769631898,0.1216,4102.4,4102.3,4.35741343]
[1758769632098,0.3519,4102.8,4102.3,4.98884134]
[1758769632299,0.3519,4102.8,4102.3,4.3498]
[1758769632300,0.1216,4102.8,4102.3,4.3498]
[1758769632500,0.2303,4102.7,4102.3,4.3498]
[1758769632703,2.55897025,4102.8,4102.3,4.11]
[1758769632902,0.2303,4102.7,4102.3,4.11]
[1758769633102,0.2303,4102.7,4102.3,4.3498]
[1758769634117,0.2303,4102.7,4102.3,4.11]
[1758769634320,0.6969,4102.6,4102.1,0.1236]
[1758769634522,0.1216,4102.4,4102.3,2.031]
[1758769634719,0.8185,4102.4,4102.3,2.031]
[1758769635222,3.2560975,4102.4,4102.3,2.031]
[1758769635425,0.8185,4102.4,4102.1,0.002]
[1758769635583,2.55931634,4102.2,4102.1,0.002]
[1758769635782,5.55931634,4102.2,4102.1,0.002]
[1758769636004,6.25621634,4102.2,4102.1,0.002]
[1758769636604,7.04821634,4102.2,4102.1,0.002]
[1758769637507,7.43053146,4102.2,4102.1,0.002]
[1758769637722,9.42418881,4102.2,4102.1,0.002]
[1758769643748,5.55931634,4102.2,4102.1,0.002]
[1758769644562,0.1216,4102.2,4102.1,0.002]
[1758769644711,0.1216,4102.2,4102.1,0.6789]
[1758769645248,0.1216,4102.2,4102.1,4.7879]
[1758769645755,0.1216,4102.2,4102.1,7.22567577]
[1758769646045,0.1216,4102.2,4102.1,5.95756086]
[1758769646359,0.1216,4102.2,4102.1,5.28066086]
[1758769646522,0.1216,4102.2,4102.1,4.111]
[1758769646948,0.1216,4102.2,4102.1,4.3508]
[1758769647251,0.1216,4102.2,4102.1,4.7879]
[1758769648349,0.1216,4102.2,4102.1,4.3508]
[1758769648553,0.1216,4102.2,4102.1,4.111]
[1758769649137,0.1216,4102.2,4102.1,4.3508]
[1758769649312,0.1216,4102.2,4102.1,4.98918]
[1758769649529,0.1216,4102.2,4102.1,4.111]
[1758769649859,9.83449626,4102.2,4102.1,4.111]
[1758769650409,7.39677992,4102.2,4102.1,4.111]
[1758769650645,7.39677992,4102.2,4102.1,4.3508]
[1758769650807,7.39677992,4102.2,4102.1,0.2418]
[1758769651010,10.53139626,4102.2,4102.1,0.002]
[1758769651206,11.82829584,4102.2,4102.1,0.002]
[1758769652119,10.53139626,4102.2,4102.1,0.002]
[1758769654533,10.06479626,4102.2,4102.1,0.002]
[1758769656036,10.53139626,4102.2,4102.1,0.002]
[1758769656235,13.53139626,4102.2,4102.1,0.002]
[1758769663170,21.59857618,4102.2,4102.1,0.002]
[1758769663372,23.98986233,4102.2,4102.1,0.002]
[1758769664973,28.09786233,4102.2,4102.1,0.002]
[1758769666309,28.09786233,4102.2,4102.1,0.2467]
[1758769666310,5.43771634,4102.2,4102.1,0.2467]
[1758769666507,12.71289626,4102.2,4102.1,0.2467]
[1758769666708,12.71289626,4102.2,4102.1,0.002]
[1758769667207,12.71289626,4102.2,4102.1,0.2467]
[1758769667386,12.71289626,4102.2,4102.1,0.6786]
[1758769668307,0.38233102,4102.3,4102.1,0.6786]
[1758769668610,7.27517992,4102.2,4102.1,0.002]
[1758769668987,7.27517992,4102.2,4102.1,0.2467]
[1758769669173,7.27517992,4102.2,4102.1,0.6786]
[1758769670519,9.71289626,4102.2,4102.1,0.2467]
[1758769672310,9.94289626,4102.2,4102.1,0.002]
[1758769672477,10.40869626,4102.2,4102.1,0.002]
[1758769673413,11.6933261,4102.2,4102.1,0.002]
[1758769673578,14.6933261,4102.2,4102.1,0.002]
[1758769673914,15.07562824,4102.2,4102.1,0.002]
[1758769674318,19.97462824,4102.2,4102.1,0.002]
[1758769674991,2.43831073,4101.2,4101.1,2.1737]
[1758769675193,2.43831073,4101.2,4101.1,2.6056]
[1758769676618,2.43831073,4101.2,4101.1,2.1737]
[1758769677833,2.43831073,4101.2,4101.1,2.6056]
[1758769678400,2.438137,4101.5,4101.1,2.6056]
[1758769678601,2.43829311,4101.3,4101.1,2.6056]
[1758769679135,2.43829311,4101.3,4101.2,0.2447]
[1758769680335,2.43829311,4101.3,4101.2,0.6766]
[1758769680701,0.03047739,4101.4,4101.2,0.6766]
[1758769680901,0.73335199,4101.8,4101.2,0.2411]
[1758769681127,2.43819235,4101.4,4101.2,0.6896]
[1758769681326,2.43819235,4101.4,4101.3,0.6896]
[1758769682702,2.438136,4101.5,4101.3,0.6896]
[1758769682942,0.1216,4101.3,4101.1,1.929]
[1758769683639,0.1216,4101.3,4101.2,0.6896]
[1758769685077,0.73335199,4101.8,4101.2,0.6896]
[1758769685367,3.17134638,4101.8,4101.3,0.6896]
[1758769685682,2.43808462,4101.6,4101.4,0.6896]
[1758769686170,2.43813239,4101.5,4101.4,0.2411]
[1758769686332,2.43813239,4101.5,4101.2,0.2411]
[1758769686533,2.43813239,4101.5,4101.3,6.3791]
[1758769686761,2.43808558,4101.6,4101.3,6.3791]
[1758769687064,0.03047442,4101.8,4101.3,6.3791]
[1758769687250,2.43819183,4101.4,4101.3,6.138]
[1758769687869,2.43814299,4101.5,4101.3,6.138]
[1758769688165,2.43819183,4101.4,4101.3,6.138]
[1758769688535,2.43829695,4101.3,4101.0,0.0144048]
[1758769688749,2.43829809,4101.3,4101.1,3.917]
[1758769688971,2.43820669,4101.4,4101.1,3.917]
[1758769689147,2.43820669,4101.4,4101.2,4.107]
[1758769689568,2.43819183,4101.4,4101.2,4.107]
[1758769689775,0.03047665,4101.5,4101.2,4.107]
[1758769689949,2.43819183,4101.4,4101.2,4.107]
[1758769690266,2.43825128,4101.3,4101.2,4.107]
[1758769690443,2.43834355,4101.2,4101.0,0.0144048]
[1758769690770,2.43834355,4101.2,4101.1,6.138]
[1758769691566,0.03047665,4101.5,4101.1,6.8276]
[1758769691776,5.89577465,4101.6,4101.2,0.6896]
[1758769691777,3.0,4101.6,4101.2,0.6896]
[1758769691976,5.43809285,4101.6,4101.3,0.6822]
[1758769692137,3.0,4101.6,4101.4,0.6898268]
[1758769692469,3.0,4101.6,4101.5,4.7892]
[1758769692638,2.43807294,4101.6,4101.5,4.3516]
[1758769693034,2.43802194,4101.7,4101.5,4.7892]
[1758769693234,3.0,4102.1,4101.6,0.2446]
[1758769693434,2.43817036,4101.5,4101.0,0.2590048]
[1758769693659,2.43817036,4101.5,4101.1,3.504]
[1758769693865,2.43817036,4101.5,4101.1,3.7486]
[1758769694175,2.43809239,4101.6,4101.2,0.2446]
[1758769694674,2.43814549,4101.5,4101.2,0.2446]
[1758769695048,2.43819546,4101.4,4101.2,0.2446]
[1758769695243,2.43819546,4101.4,4101.1,0.4376]
[1758769695440,2.43828366,4101.3,4101.2,5.472]
[1758769695656,2.43832229,4101.2,4101.0,0.0144048]
[1758769695854,2.43832229,4101.2,4101.1,6.138]
[1758769695855,2.55992229,4101.2,4101.1,6.138]
[1758769696261,0.1216,4101.2,4101.1,6.138]
[1758769696684,2.55991073,4101.2,4101.1,6.138]
[1758769697783,0.1216,4101.2,4101.1,6.138]
[1758769698581,2.43837019,4101.1,4101.0,0.0144048]
[1758769698785,14.62449159,4101.1,4101.0,0.0144048]
[1758769699288,14.62449159,4101.1,4098.7,2.43978801]
[1758769699289,0.792,4100.8,4098.7,2.43978801]
[1758769699458,12.71408533,4100.2,4099.3,4.107]
[1758769699681,12.71408533,4100.2,4099.7,0.226]
[1758769700064,5.43890541,4100.2,4099.7,0.226]
[1758769700362,5.67400541,4100.2,4099.7,0.226]
[1758769700591,5.43890541,4100.2,4099.7,0.4706]
[1758769700992,3.0,4100.2,4099.7,0.4706]
[1758769701192,3.0,4100.2,4099.1,0.02]
[1758769701193,5.43890541,4100.2,4099.8,0.00764668]
[1758769701498,12.71408533,4100.2,4100.1,0.022]
[1758769701861,5.43890541,4100.2,4100.1,0.022]
[1758769702262,3.0,4100.2,4100.1,0.022]
[1758769702666,5.43890541,4100.2,4100.1,0.022]
[1758769702863,3.0,4100.1,4099.8,2.9112]
[1758769703097,2.82125383,4100.5,4099.9,0.4376]
[1758769703498,0.4485,4100.8,4100.0,2.44666222]
[1758769703796,3.0,4100.9,4100.1,0.4376]
[1758769704002,2.43854857,4100.8,4100.1,0.4376]
[1758769704499,0.73349723,4101.0,4100.1,0.4376]
[1758769704802,0.001,4101.7,4100.8,2.43850314]
[1758769704803,2.43812168,4101.6,4100.8,2.43850314]
[1758769704989,0.73336813,4101.6,4100.9,4.11863358]
[1758769705304,0.001,4101.7,4100.9,7.21960407]
[1758769705466,0.001,4101.7,4101.0,0.92516041]
[1758769705667,2.43901898,4101.7,4101.1,0.00763191]
[1758769705868,0.001,4101.7,4101.1,4.78213191]
[1758769706299,2.43901759,4101.7,4101.1,4.78213191]
[1758769706776,2.43901759,4101.7,4101.1,4.112]
[1758769706777,2.43811582,4101.6,4101.1,4.112]
[1758769707097,3.0,4101.5,4101.1,4.112]
[1758769707304,0.001,4101.7,4101.1,7.22050145]
[1758769707498,0.001,4101.7,4101.1,7.21287019]
[1758769707803,0.001,4101.7,4101.1,8.38120469]
[1758769708802,0.001,4101.7,4101.1,8.50280469]
[1758769709009,0.001,4101.7,4101.1,10.53480469]
[1758769709202,0.001,4101.7,4101.1,8.50380469]
[1758769709401,0.001,4101.7,4101.1,10.53580469]
[1758769711173,0.001,4101.7,4101.1,4.39080469]
[1758769711375,0.001,4101.7,4101.1,2.55997019]
[1758769711376,0.2361,4101.7,4101.1,2.55997019]
[1758769711576,0.2361,4101.7,4101.1,4.47037019]
[1758769711784,0.1216,4101.6,4101.1,8.58337019]
[1758769712011,0.1216,4101.6,4101.1,9.02097019]
[1758769713111,0.1216,4101.6,4101.1,8.58337019]
[1758769713611,0.2351,4101.5,4101.1,6.145]
[1758769713828,0.6846,4101.2,4101.1,2.031]
[1758769713971,0.6846,4101.2,4100.8,2.43854381]
[1758769714177,0.6846,4101.2,4100.9,6.144]
[1758769714473,0.2361,4101.2,4100.9,6.144]
[1758769714672,0.001,4101.2,4100.7,0.1216]
[1758769714877,0.2351,4101.1,4101.0,4.113]
[1758769715077,0.2351,4101.1,4101.0,6.144]
[1758769715515,0.001,4101.2,4101.0,6.144]
[1758769715898,0.6836,4101.1,4100.7,0.1216]
[1758769716087,0.6836,4101.1,4100.8,1.19]
[1758769716088,0.4485,4101.0,4100.8,1.19]
[1758769716305,0.6836,4100.9,4100.6,2.031]
[1758769716504,0.2351,4100.8,4100.7,4.112]
[1758769716879,0.6836,4100.8,4100.7,4.112]
[1758769717080,0.6836,4100.8,4099.9,2.43902521]
[1758769717417,0.2351,4100.7,4100.2,2.43890463]
[1758769717711,0.2351,4100.7,4100.3,4.112]
[1758769717913,0.2351,4100.7,4100.4,2.43877172]
[1758769718103,0.2351,4101.0,4100.4,2.43877172]
[1758769718611,0.2351,4101.0,4100.5,2.44631436]
[1758769718819,0.001,4101.2,4100.6,4.112]
[1758769719114,0.001,4101.2,4100.7,0.00763525]
[1758769719319,0.6836,4101.1,4100.7,0.00763525]
[1758769719613,0.2351,4101.0,4100.7,0.00763525]
[1758769720212,0.4485,4101.1,4100.7,2.44623488]
[1758769720410,0.2361,4101.2,4100.8,2.42825852]
[1758769720612,0.2361,4101.2,4100.9,4.111]
[1758769720613,0.001,4101.2,4100.9,4.111]
[1758769720817,0.001,4101.2,4100.9,7.21962205]
[1758769721116,0.001,4101.2,4101.0,3.10851707]
[1758769721415,0.001,4101.2,4101.0,0.00763274]
[1758769722009,0.001,4101.2,4101.1,4.111]
[1758769722383,0.54492677,4101.2,4101.1,4.111]
[1758769722584,0.77422677,4101.2,4101.1,4.111]
[1758769722914,1.24612677,4101.2,4100.6,2.43864413]
[1758769723081,1.01682677,4101.2,4100.7,6.143]
[1758769723281,0.7012,4101.1,4100.7,6.143]
[1758769723512,0.7012,4101.0,4100.7,6.143]
[1758769723829,0.7012,4100.9,4100.8,4.112]
[1758769725181,0.7012,4100.9,4100.3,2.43879673]
[1758769725386,0.2293,4100.8,4100.4,6.143]
[1758769725587,0.2293,4100.7,4100.4,6.143]
[1758769726009,2.4384984,4100.9,4100.1,2.4389649]
[1758769726286,0.1216,4100.7,4100.4,2.032]
[1758769726524,0.1216,4100.7,4100.5,4.11]
[1758769727386,0.1216,4100.7,4100.5,6.54872472]
[1758769727590,0.1216,4100.7,4100.5,4.11]
[1758769728493,0.3509,4100.7,4100.5,4.11]
[1758769728687,0.7012,4100.6,4100.0,0.1216]
[1758769728928,0.2293,4100.6,4100.1,4.967]
[1758769729122,2.66806884,4100.5,4099.6,0.4593]
[1758769729429,2.56056374,4100.2,4099.6,0.002]
[1758769729600,2.56056374,4100.2,4099.7,5.433]
[1758769729928,2.56056374,4100.2,4099.8,4.109]
[1758769729929,3.0,4100.0,4099.8,4.109]
[1758769730089,3.7012,4099.9,4099.8,4.109]
[1758769730421,0.7012,4099.9,4099.8,4.109]
[1758769730601,0.2293,4099.9,4099.8,4.109]
[1758769731106,3.0,4100.1,4099.8,4.109]
[1758769731312,3.2293,4100.1,4099.8,4.109]
[1758769731514,5.66829222,4100.1,4099.8,4.109]
[1758769731690,3.2293,4100.1,4099.8,4.109]
[1758769732021,5.66833529,4100.0,4099.8,4.109]
[1758769732208,0.2293,4100.0,4099.8,4.109]
[1758769732414,3.0,4099.9,4099.8,4.109]
[1758769732626,3.0,4099.9,4099.8,4.10385602]
[1758769733327,0.73358332,4100.8,4099.8,4.10385602]
[1758769733501,0.1216,4100.5,4100.2,2.43886301]
[1758769733697,0.1216,4100.5,4100.3,7.24068716]
[1758769733912,0.1216,4100.5,4100.3,7.23304401]
[1758769734116,0.1216,4100.5,4100.4,2.44642876]
[1758769734503,0.1216,4100.5,4100.4,4.93572876]
[1758769734704,0.1216,4100.9,4100.4,3.61897288]
[1758769734905,0.1216,4100.9,4100.6,2.43866314]
[1758769735090,0.1216,4100.9,4100.8,2.43854857]
[1758769736648,0.001,4101.2,4101.1,4.47800145]
[1758769736994,0.001,4101.2,4101.1,5.16020145]
[1758769737210,0.001,4101.2,4101.1,5.15257019]
[1758769737600,0.001,4101.2,4101.1,5.27417019]
[1758769737803,0.001,4101.2,4101.1,10.56973537]
[1758769738220,0.1216,4101.9,4101.5,2.4381227]
[1758769738400,0.1216,4101.9,4101.6,4.113]
[1758769738929,0.1216,4101.9,4101.6,6.55106299]
[1758769739251,0.1216,4101.9,4101.7,2.90291275]
[1758769739445,3.2293,4102.5,4101.8,2.43795406]
[1758769739601,0.1216,4102.4,4101.9,6.54988411]
[1758769739806,0.1216,4102.4,4102.0,2.43779219]
[1758769740235,0.1216,4102.4,4101.9,7.00718202]
[1758769740539,0.1216,4102.4,4102.0,2.4378352]
[1758769740749,0.1216,4102.4,4101.9,4.5693]
[1758769740911,0.1216,4102.4,4102.0,2.43779249]
[1758769741443,0.1216,4102.4,4102.0,2.98866242]
[1758769741604,0.02000001,4102.9,4102.1,0.6839]
[1758769741807,0.02000001,4102.9,4102.8,2.43735985]
[1758769742114,0.02000001,4102.9,4102.8,8.59096585]
[1758769742317,0.02000001,4102.9,4102.8,9.26725985]
[1758769742512,0.02000001,4102.9,4102.8,10.43772979]
[1758769744353,0.001,4103.0,4102.9,3.22930044]
[1758769744644,0.001,4103.0,4102.9,3.91320044]
[1758769745443,0.001,4103.0,4102.9,6.91320044]
[1758769745806,0.001,4103.8,4103.7,2.4368253]
[1758769746006,0.001,4103.8,4103.7,9.07979119]
[1758769746210,0.001,4103.8,4103.7,9.75609856]
[1758769746409,0.001,4103.8,4103.7,13.54809856]
[1758769747219,0.001,4103.8,4103.7,7.40009856]
[1758769747633,0.001,4103.8,4103.7,19.89609856]
[1758769748935,0.001,4105.2,4103.7,17.45927326]
[1758769749151,0.001,4105.2,4104.8,2.43617228]
[1758769749325,0.001,4105.2,4104.8,8.58217228]
[1758769749529,0.001,4105.2,4104.8,9.26607228]
[1758769750232,0.001,4105.2,4104.8,10.05807228]
[1758769750634,1e-08,4104.9,4104.8,13.05807228]
[1758769750812,1e-08,4104.9,4104.8,14.60750494]
[1758769751349,1e-08,4104.9,4104.8,7.77760494]
[1758769751513,1e-08,4104.9,4104.8,14.73010494]
[1758769752812,1e-08,4104.9,4104.8,8.58310494]
[1758769753018,1e-08,4104.9,4104.8,21.08110494]
[1758769753548,1e-08,4104.9,4104.8,19.60520494]
[1758769754250,1e-08,4104.9,4104.8,20.06970494]
[1758769754552,1e-08,4104.9,4104.8,7.57170494]
[1758769754710,1e-08,4104.9,4104.8,20.30000494]
[1758769755552,1e-08,4104.9,4104.8,19.60520494]
[1758769755747,0.24270001,4104.9,4104.8,4.58777228]
[1758769755976,0.69190001,4104.9,4104.8,0.1216]
[1758769756257,0.69290001,4104.9,4104.8,8.70977228]
[1758769756752,0.00100001,4104.9,4104.8,8.70977228]
[1758769758329,0.69290001,4104.9,4104.8,2.55777228]
[1758769758563,0.69290001,4104.9,4104.8,6.2736]
[1758769759065,0.69290001,4104.9,4104.8,8.70977228]
[1758769759257,0.00100001,4104.9,4104.8,9.98503914]
[1758769760270,0.00100001,4104.9,4104.8,8.59117228]
[1758769760645,0.00100001,4104.9,4104.8,2.43617228]
[1758769760860,0.24370001,4104.9,4104.8,2.44374859]
[1758769761085,0.69290001,4104.9,4104.8,8.59874859]
[1758769761298,0.69290001,4104.9,4104.8,2.43617228]
[1758769761779,0.69290001,4104.9,4104.8,8.59317228]
[1758769762151,0.69290001,4104.9,4104.8,2.43617228]
[1758769762346,0.69290001,4104.9,4104.8,8.59217228]
[1758769764450,0.24370001,4104.9,4104.8,8.59217228]
[1758769764651,0.69290001,4104.9,4104.8,8.59217228]
[1758769764864,0.00100001,4104.9,4104.8,6.56017228]
[1758769765119,0.00100001,4104.9,4104.8,8.59017228]